[Event "4th Memorial Warakomska-A 2020"]
[Site "Suwalki"]
[Date "2020.08.08"]
[Round "4.12"]
[White "Budzisz, Adrian"]
[Black "Flis, Pawel"]
[Result "1-0"]
[ECO "A48"]
[WhiteElo "1823"]
[BlackElo "1873"]
[Annotator "NA"]
[PlyCount "105"]
[EventDate "2020.08.06"]
[EventType "swiss"]
[EventCountry "POL"]
[SourceTitle "playchess.com"]
[Source "ChessBase"]
[SourceQuality "1"]
[TimeControl "40/5400+30:1800+30"]

1. Nf3 {[%emt 0:00:00]} Nf6 {[%emt 0:00:00]} 2. d4 {[%emt 0:00:00]} g6 {[%emt 0:00:03]} 3. c3 {[%emt 0:00:00]} Bg7 {[%emt 0:00:08]} 4. Bf4 {[%emt 0:00:00]} O-O {[%emt 0:00:18]} 5. e3 {[%emt 0:00:00]} d6 {[%emt 0:00:12]} 6. h3 {[%emt 0:00:00]} b6 {[%emt 0:00:26]} 7. Be2 {[%emt 0:00:10] A48: 1 d4 Nf6 2 Nf3 g6: Torre, London and Colle Systems.} Bb7 {[%emt 0:00:10]} 8. a4 {[%emt 0:00:08]} c5 {[%emt 0:00:30]} 9. a5 {[%emt 0:00:47]} Nbd7 {[%emt 0:04:50]} 10. O-O {[%emt 0:00:59]} bxa5 {[%emt 0:02:34]} 11. Nbd2 {[%emt 0:01:00]} cxd4 {[%emt 0:01:29]} 12. exd4 {[%emt 0:00:16]} Nb6 {[%emt 0:06:36] [#]} 13. Re1 $146 {[%emt 0:00:55]} ({Predecessor:} 13. Bh2 a4 14. Bb5 Ne4 15. Re1 Nxd2 16. Nxd2 e5 17. Nf3 e4 18. Nd2 Qg5 19. Bxa4 Nxa4 20. Rxa4 {1-0 (45) Mikac,M (2440)-Armanda,I (2255) Nova Gorica 1997}) 13... Bc6 {[%emt 0:13:18]} 14. Bh2 {[%emt 0:02:38]} ({Much weaker is} 14. Rxa5 Nbd5 $17 {[%mdl 64] Discovered Attack}) 14... a4 {[%emt 0:00:27]} 15. Nc4 {[%emt 0:02:41]} Nxc4 {[%emt 0:01:48]} 16. Bxc4 {[%emt 0:00:12]} Rb8 {[%emt 0:04:02]} 17. d5 {[%emt 0:04:31]} Bd7 {[%emt 0:00:55]} 18. Ra2 {[%emt 0:02:37]} Re8 {[%emt 0:02:33]} 19. Nd4 {[%emt 0:01:42]} Qb6 {[%emt 0:01:42]} 20. Qd3 {[%emt 0:01:36]} Bf8 {[%emt 0:04:53]} 21. g4 {[%emt 0:06:53]} Qc5 {[%emt 0:02:35]} 22. b4 {[%emt 0:04:13]} axb3 {[%emt 0:00:58]} 23. Nxb3 {[%emt 0:00:23]} Qc7 {[%emt 0:01:08]} 24. Rea1 {[%emt 0:00:27]} Rec8 {[%emt 0:06:11]} 25. Nd2 {[%emt 0:00:55]} Ra8 {[%emt 0:00:28]} 26. Ra6 {[%emt 0:00:50]} Rcb8 {[%emt 0:12:36]} 27. Qd4 {[%emt 0:03:15]} Rb7 {[%emt 0:08:29]} 28. Bf4 {[%emt 0:01:44]} Bg7 {[%emt 0:01:10]} 29. Qd3 {[%emt 0:03:46]} ({White should try} 29. Qe3 $15) 29... h5 {[%emt 0:05:16]} 30. f3 {[%emt 0:01:29]} Rb6 {[%emt 0:06:31]} ({Black should play} 30... Rb2 $17 31. Be3 hxg4 32. hxg4 Bc8 33. Rxa7 Rxa7 34. Rxa7 Bb7) 31. R6a5 {[%emt 0:00:18]} hxg4 {[%emt 0:06:18]} 32. hxg4 {[%emt 0:02:04]} Nh7 {[%emt 0:03:10]} 33. Be3 {[%emt 0:01:51]} Rb7 {[%emt 0:00:19]} 34. Kg2 {[%emt 0:00:56]} Qc8 $2 {[%emt 0:00:37]} (34... f5 $15 {stays ahead.}) 35. Ba6 {[%emt 0:00:18] Skewer} ({Inferior is} 35. Rxa7 Raxa7 36. Rxa7 Rxa7 $15) 35... Bxg4 {[%emt 0:00:00]} 36. Bxb7 {[%emt 0:01:34]} Bh3+ {[%emt 0:01:23]} 37. Kf2 {[%emt 0:09:16]} Qxb7 {[%emt 0:01:05]} 38. Rxa7 {[%emt 0:00:38]} Rxa7 {[%emt 0:00:55]} 39. Rxa7 {[%emt 0:00:00]} Qb2 {[%emt 0:00:00]} 40. Rxe7 {[%emt 0:00:00]} Bf5 {[%emt 0:00:00]} 41. Re8+ {[%emt 0:03:30]} Nf8 {[%emt 0:05:00]} 42. Qa6 {[%emt 0:02:22]} Bd7 $2 {[%emt 0:14:50]} (42... Qxc3 {was necessary.} 43. Qxd6 Qa5) 43. Rd8 {[%emt 0:01:00]} Qxc3 $18 {[%emt 0:09:25]} 44. Qxd6 {[%emt 0:01:02]} Bb5 {[%emt 0:00:13]} 45. Ne4 {[%emt 0:10:42]} Qb2+ {[%emt 0:02:22]} 46. Bd2 {[%emt 0:00:20]} f5 {[%emt 0:03:54]} 47. Qb4 {[%emt 0:06:47]} fxe4 {[%emt 0:01:00]} 48. Rxf8+ {[%emt 0:00:09]} Kh7 {[%emt 0:00:20]} 49. Qxb2 {[%emt 0:00:15]} Bxb2 {[%emt 0:00:01]} 50. Rb8 {[%emt 0:01:58]} Bd4+ {[%emt 0:00:30]} 51. Be3 {[%emt 0:00:07]} Bxe3+ {[%emt 0:00:24]} 52. Kxe3 {[%emt 0:00:04]} Ba4 {[%emt 0:00:21]} 53. fxe4 {[%emt 0:00:10]} 1-0

[Event "4th Memorial Warakomska-A 2020"]
[Site "Suwalki"]
[Date "2020.08.08"]
[Round "4.13"]
[White "Choroszej, Aleksander"]
[Black "Jurkiewicz, Krzysztof"]
[Result "1-0"]
[ECO "A69"]
[WhiteElo "2059"]
[BlackElo "2275"]
[Annotator "ChessBase"]
[PlyCount "57"]
[EventDate "2020.08.06"]
[EventType "swiss"]
[EventCountry "POL"]
[SourceTitle "playchess.com"]
[Source "ChessBase"]
[SourceQuality "1"]
[TimeControl "40/5400+30:1800+30"]

1. d4 {[%emt 0:00:00]} Nf6 {[%emt 0:00:00]} 2. c4 {[%emt 0:00:01]} g6 {[%emt 0:00:00]} 3. Nc3 {[%emt 0:00:11]} Bg7 {[%emt 0:00:00]} 4. e4 {[%emt 0:00:07]} d6 {[%emt 0:00:00]} 5. f4 {[%emt 0:00:07]} O-O {[%emt 0:00:09]} 6. Nf3 {[%emt 0:00:07]} c5 {[%emt 0:00:16]} 7. d5 {[%emt 0:00:08]} e6 {[%emt 0:00:16]} 8. Be2 {[%emt 0:00:06]} exd5 {[%emt 0:00:24]} 9. cxd5 {[%emt 0:00:06]} Re8 {[%emt 0:07:32]} 10. e5 {[%emt 0:00:07]} dxe5 {[%emt 0:08:54]} 11. fxe5 {[%emt 0:00:07]} Ng4 {[%emt 0:01:31]} 12. e6 {[%emt 0:00:08]} fxe6 {[%emt 0:01:10]} 13. d6 {[%emt 0:00:05]} Bd7 {[%emt 0:03:02]} 14. O-O {[%emt 0:00:23]} Qb6 {[%emt 0:04:34]} 15. Qe1 {[%emt 0:11:41]} Qxd6 {[%emt 0:08:20]} 16. Qh4 {[%emt 0:00:10]} Nf6 {[%emt 0:15:56]} 17. Bg5 {[%emt 0:07:41]} Rf8 {[%emt 0:03:49]} 18. Rad1 {[%emt 0:00:33]} Qc7 {[%emt 0:06:50]} 19. Nd2 {[%emt 0:08:56]} Nd5 {[%emt 0:06:43]} 20. Rxf8+ {[%emt 0:03:19]} Bxf8 {[%emt 0:00:31]} 21. Nde4 {[%emt 0:03:06]} Bg7 {[%emt 0:00:36]} 22. Nxd5 {[%emt 0:40:28]} exd5 {[%emt 0:00:40]} 23. Bf4 {[%emt 0:02:20]} Qc8 {[%emt 0:11:06]} 24. Rxd5 {[%emt 0:05:46]} Nc6 {[%emt 0:02:14]} 25. Bc4 {[%emt 0:01:43]} Kh8 {[%emt 0:07:37]} 26. Ng5 {[%emt 0:01:43]} h5 {[%emt 0:02:27]} 27. Nf7+ {[%emt 0:00:16]} Kg8 {[%emt 0:01:26]} 28. Nd6 {[%emt 0:03:44]} Qd8 {[%emt 0:06:06]} 29. Rf5+ 1-0

[Event "4th Memorial Warakomska-A 2020"]
[Site "Suwalki"]
[Date "2020.08.08"]
[Round "4.14"]
[White "Strzelecki, Jerzy"]
[Black "Rosol, Alexander"]
[Result "0-1"]
[ECO "A05"]
[WhiteElo "1977"]
[BlackElo "1933"]
[Annotator "ChessBase"]
[PlyCount "64"]
[EventDate "2020.08.06"]
[EventType "swiss"]
[EventCountry "POL"]
[SourceTitle "playchess.com"]
[Source "ChessBase"]
[SourceQuality "1"]
[TimeControl "40/5400+30:1800+30"]

1. Nf3 {[%emt 0:00:00]} Nf6 {[%emt 0:00:00]} 2. c4 {[%emt 0:00:00]} g6 {[%emt 0:00:00]} 3. g3 {[%emt 0:00:20]} Bg7 {[%emt 0:00:00]} 4. Bg2 {[%emt 0:00:15]} O-O {[%emt 0:00:15]} 5. O-O {[%emt 0:00:04]} d6 {[%emt 0:00:04]} 6. Nc3 {[%emt 0:00:36]} c6 {[%emt 0:00:26]} 7. d3 {[%emt 0:01:42]} e5 {[%emt 0:00:15]} 8. Rb1 {[%emt 0:00:19]} Re8 {[%emt 0:00:30]} 9. Bg5 {[%emt 0:00:38]} h6 {[%emt 0:01:54]} 10. Bxf6 {[%emt 0:00:13]} Bxf6 {[%emt 0:00:03]} 11. Qc2 {[%emt 0:01:49]} Be6 {[%emt 0:03:26]} 12. e4 {[%emt 0:03:39]} Nd7 {[%emt 0:02:52]} 13. b4 {[%emt 0:00:44]} a6 {[%emt 0:00:26]} 14. Rfc1 {[%emt 0:02:23]} Bg7 {[%emt 0:01:39]} 15. a4 {[%emt 0:02:51]} f5 {[%emt 0:01:02]} 16. b5 {[%emt 0:02:18]} axb5 17. axb5 {[%emt 0:00:10]} Qc7 {[%emt 0:01:30]} 18. Nh4 {[%emt 0:00:50]} Kh7 {[%emt 0:03:59]} 19. Qe2 {[%emt 0:05:54]} f4 {[%emt 0:02:11]} 20. Bf3 {[%emt 0:00:56]} Nc5 {[%emt 0:03:58]} 21. Rc2 {[%emt 0:03:43]} Bf6 {[%emt 0:01:52]} 22. Ng2 {[%emt 0:01:29]} g5 {[%emt 0:02:19]} 23. bxc6 {[%emt 0:02:04]} bxc6 {[%emt 0:00:12]} 24. Bh5 {[%emt 0:02:56]} Rg8 {[%emt 0:01:23]} 25. g4 {[%emt 0:00:44]} Ra3 {[%emt 0:01:01]} 26. Ne1 {[%emt 0:00:30]} Rga8 {[%emt 0:01:31]} 27. Kg2 {[%emt 0:00:18]} Qa5 {[%emt 0:03:01]} 28. Nd1 {[%emt 0:03:26]} Bd8 {[%emt 0:05:38]} 29. Be8 {[%emt 0:01:20]} Qa6 {[%emt 0:00:20]} 30. Bh5 {[%emt 0:01:42]} Ba5 {[%emt 0:01:36]} 31. Nb2 {[%emt 0:00:53]} Rb8 {[%emt 0:00:57]} 32. Rbc1 {[%emt 0:01:54]} Nb3 {[%emt 0:00:47]} 0-1

[Event "4th Memorial Warakomska-A 2020"]
[Site "Suwalki"]
[Date "2020.08.08"]
[Round "4.15"]
[White "Marczukiewicz, Jerzy"]
[Black "Chojnowski, Marcin"]
[Result "0-1"]
[ECO "E11"]
[WhiteElo "1912"]
[BlackElo "2035"]
[Annotator "ChessBase"]
[PlyCount "64"]
[EventDate "2020.08.06"]
[EventType "swiss"]
[EventCountry "POL"]
[SourceTitle "playchess.com"]
[Source "ChessBase"]
[SourceQuality "1"]
[TimeControl "40/5400+30:1800+30"]

1. Nf3 {[%emt 0:00:00]} Nf6 {[%emt 0:00:00]} 2. c4 {[%emt 0:00:30]} e6 {[%emt 0:00:30]} 3. d4 {[%emt 0:00:30]} Bb4+ {[%emt 0:00:30]} 4. Bd2 {[%emt 0:00:30]} c5 {[%emt 0:00:30]} 5. Nc3 {[%emt 0:00:30]} cxd4 {[%emt 0:00:30]} 6. Nxd4 {[%emt 0:00:30]} O-O {[%emt 0:00:30]} 7. Rc1 {[%emt 0:00:30]} Nc6 {[%emt 0:03:19]} 8. Nc2 {[%emt 0:09:01]} Bc5 {[%emt 0:03:26]} 9. Be3 {[%emt 0:01:14]} Be7 {[%emt 0:01:01]} 10. Bg5 {[%emt 0:01:57]} Qb6 {[%emt 0:02:19]} 11. b3 {[%emt 0:12:16]} Ng4 {[%emt 0:08:13]} 12. Be3 {[%emt 0:02:13]} Qa5 {[%emt 0:06:12]} 13. Bd2 {[%emt 0:03:14]} Qf5 {[%emt 0:06:52]} 14. f3 {[%emt 0:01:00]} Bc5 {[%emt 0:04:07]} 15. e3 {[%emt 0:05:50]} Nf6 {[%emt 0:11:13]} 16. Be2 {[%emt 0:04:31]} d5 {[%emt 0:01:17]} 17. Nb5 {[%emt 0:10:34]} dxc4 {[%emt 0:10:16]} 18. Bxc4 {[%emt 0:01:05]} Rd8 {[%emt 0:01:44]} 19. Qe2 {[%emt 0:05:43]} a6 {[%emt 0:03:36]} 20. e4 {[%emt 0:07:05]} Qh5 {[%emt 0:02:57]} 21. Nc3 {[%emt 0:05:47]} b5 {[%emt 0:01:08]} 22. b4 {[%emt 0:04:36]} Ba7 {[%emt 0:04:15]} 23. Bb3 {[%emt 0:01:58]} Ne5 {[%emt 0:00:07]} 24. Ne3 {[%emt 0:12:51]} Nd3+ {[%emt 0:01:25]} 25. Kf1 {[%emt 0:00:40]} Nxc1 {[%emt 0:00:41]} 26. Bxc1 {[%emt 0:00:03]} Bb7 {[%emt 0:02:27]} 27. h4 {[%emt 0:01:39]} Rac8 {[%emt 0:01:13]} 28. Bb2 {[%emt 0:00:49]} Bd4 {[%emt 0:03:29]} 29. Ncd5 {[%emt 0:03:17]} Nxd5 {[%emt 0:06:00]} 30. Bxd5 {[%emt 0:01:21]} Bxd5 {[%emt 0:02:41]} 31. Bxd4 {[%emt 0:00:27]} Rc1+ {[%emt 0:01:28]} 32. Nd1 {[%emt 0:00:49]} Bc4 {[%emt 0:00:39]} 0-1

[Event "4th Memorial Warakomska-A 2020"]
[Site "Suwalki"]
[Date "2020.08.09"]
[Round "5.3"]
[White "Goluch, Piotr"]
[Black "Shilov, Sergej"]
[Result "1-0"]
[ECO "E66"]
[WhiteElo "2376"]
[BlackElo "2121"]
[Annotator "ChessBase"]
[PlyCount "97"]
[EventDate "2020.08.06"]
[EventType "swiss"]
[EventCountry "POL"]
[SourceTitle "playchess.com"]
[Source "ChessBase"]
[SourceQuality "1"]
[TimeControl "40/5400+30:1800+30"]

1. d4 {[%emt 0:00:00]} Nf6 {[%emt 0:00:22]} 2. c4 {[%emt 0:00:25]} g6 {[%emt 0:00:47]} 3. Nf3 {[%emt 0:01:05]} Bg7 {[%emt 0:00:24]} 4. g3 {[%emt 0:00:06]} O-O {[%emt 0:01:28]} 5. Bg2 {[%emt 0:00:06]} d6 {[%emt 0:01:14]} 6. O-O {[%emt 0:00:07]} c5 {[%emt 0:01:35]} 7. Nc3 {[%emt 0:01:56]} Nc6 {[%emt 0:00:45]} 8. d5 {[%emt 0:08:51]} Na5 {[%emt 0:00:39]} 9. Nd2 {[%emt 0:00:05]} a6 {[%emt 0:00:47]} 10. Rb1 {[%emt 0:01:20]} Bf5 {[%emt 0:04:45]} 11. e4 {[%emt 0:00:57]} Bd7 {[%emt 0:00:01]} 12. Qc2 {[%emt 0:00:45]} b5 {[%emt 0:02:22]} 13. b3 {[%emt 0:00:05]} Rb8 {[%emt 0:01:34]} 14. Bb2 {[%emt 0:00:05]} e5 {[%emt 0:03:12]} 15. Ne2 {[%emt 0:10:15]} h5 {[%emt 0:12:10]} 16. h3 {[%emt 0:04:03]} bxc4 {[%emt 0:13:57]} 17. bxc4 {[%emt 0:00:07]} Qc8 {[%emt 0:04:59]} 18. Bc3 {[%emt 0:00:34]} Nb7 {[%emt 0:00:17]} 19. Kh2 {[%emt 0:01:21]} h4 {[%emt 0:01:06]} 20. gxh4 {[%emt 0:12:22]} Nh5 {[%emt 0:01:40]} 21. Rb6 {[%emt 0:00:06]} Qd8 {[%emt 0:02:10]} 22. Qb2 {[%emt 0:05:18]} Bc8 {[%emt 0:00:40]} 23. f4 {[%emt 0:04:05]} exf4 {[%emt 0:01:32]} 24. Bxg7 {[%emt 0:00:39]} Nxg7 {[%emt 0:00:02]} 25. Nf3 {[%emt 0:15:43]} Nh5 {[%emt 0:00:45]} 26. Rb1 {[%emt 0:00:10]} Re8 {[%emt 0:05:36]} 27. Ng5 {[%emt 0:03:59]} Re5 {[%emt 0:03:11]} 28. Bf3 {[%emt 0:06:30]} Rxg5 {[%emt 0:15:11]} 29. hxg5 {[%emt 0:00:05]} Qxg5 {[%emt 0:00:01]} 30. Bxh5 {[%emt 0:00:06]} Qxh5 {[%emt 0:00:20]} 31. Nxf4 {[%emt 0:04:09]} Qh4 {[%emt 0:00:11]} 32. Rf1 {[%emt 0:03:04]} Qe7 {[%emt 0:01:18]} 33. Nh5 {[%emt 0:05:46]} gxh5 {[%emt 0:08:44]} 34. Rg1+ {[%emt 0:00:01]} Bg4 {[%emt 0:00:07]} 35. Qf2 {[%emt 0:01:11]} Re8 {[%emt 0:01:42]} 36. hxg4 {[%emt 0:02:12]} h4 {[%emt 0:00:09]} 37. Qf4 {[%emt 0:01:44]} Na5 {[%emt 0:00:32]} 38. Rxd6 {[%emt 0:04:08]} Nxc4 {[%emt 0:00:18]} 39. Rf6 {[%emt 0:00:39]} Ne5 {[%emt 0:02:40]} 40. d6 {[%emt 0:00:00]} Qb7 {[%emt 0:00:00]} 41. Rf1 {[%emt 0:18:46]} Qb2+ {[%emt 0:07:55]} 42. Kh3 {[%emt 0:00:45]} Qd4 {[%emt 0:02:27]} 43. Qg5+ {[%emt 0:02:40]} Kf8 {[%emt 0:00:51]} 44. Qxh4 {[%emt 0:01:13]} Kg7 {[%emt 0:01:10]} 45. Qh6+ {[%emt 0:00:36]} Kg8 {[%emt 0:00:41]} 46. Qg5+ {[%emt 0:00:31]} Kf8 {[%emt 0:00:51]} 47. Rh6 {[%emt 0:05:04]} Nc4 {[%emt 0:01:41]} 48. Rxf7+ {[%emt 0:02:55]} Kxf7 {[%emt 0:00:43]} 49. Qf5+ {[%emt 0:01:11]} 1-0

[Event "4th Memorial Warakomska-A 2020"]
[Site "Suwalki"]
[Date "2020.08.09"]
[Round "5.4"]
[White "Godzwon, Iwo"]
[Black "Praczukowski, Stanislaw"]
[Result "0-1"]
[ECO "B90"]
[WhiteElo "2347"]
[BlackElo "2132"]
[Annotator "ChessBase"]
[PlyCount "72"]
[EventDate "2020.08.06"]
[EventType "swiss"]
[EventCountry "POL"]
[SourceTitle "playchess.com"]
[Source "ChessBase"]
[SourceQuality "1"]
[TimeControl "40/5400+30:1800+30"]

1. e4 {[%emt 0:00:00]} c5 {[%emt 0:00:00]} 2. Nf3 {[%emt 0:00:00]} d6 {[%emt 0:00:00]} 3. d4 {[%emt 0:00:09]} cxd4 {[%emt 0:00:00]} 4. Nxd4 {[%emt 0:00:04]} Nf6 {[%emt 0:00:07]} 5. Nc3 {[%emt 0:00:08]} a6 {[%emt 0:00:08]} 6. Be3 {[%emt 0:00:08]} Ng4 {[%emt 0:00:57]} 7. Bc1 {[%emt 0:02:13]} Nf6 {[%emt 0:00:22]} 8. f3 {[%emt 0:05:43]} e5 {[%emt 0:02:19]} 9. Nb3 {[%emt 0:00:26]} Be6 {[%emt 0:01:11]} 10. Be3 {[%emt 0:00:05]} Be7 {[%emt 0:00:12]} 11. Qd2 {[%emt 0:00:15]} O-O {[%emt 0:00:55]} 12. O-O-O {[%emt 0:10:55]} a5 {[%emt 0:02:16]} 13. a4 {[%emt 0:04:58]} Nc6 {[%emt 0:04:30]} 14. g4 {[%emt 0:09:13]} Nb4 {[%emt 0:00:53]} 15. Bb5 {[%emt 0:04:58]} Rc8 {[%emt 0:08:43]} 16. Kb1 {[%emt 0:18:34]} Qc7 {[%emt 0:28:26]} 17. g5 {[%emt 0:02:25]} Nh5 {[%emt 0:10:19]} 18. Rhg1 {[%emt 0:00:07]} d5 {[%emt 0:11:29]} 19. Nxd5 {[%emt 0:08:02]} Bxd5 {[%emt 0:07:36]} 20. exd5 {[%emt 0:00:05]} Rfd8 {[%emt 0:02:33]} 21. c4 {[%emt 0:02:30]} Qd6 {[%emt 0:00:13]} 22. Nc1 {[%emt 0:07:08]} Qg6+ {[%emt 0:06:27]} 23. Ka1 {[%emt 0:01:52]} Nc2+ {[%emt 0:01:23]} 24. Ka2 {[%emt 0:00:04]} Nb4+ {[%emt 0:01:11]} 25. Kb3 {[%emt 0:00:21]} Qb1 {[%emt 0:02:37]} 26. Bb6 {[%emt 0:05:10]} Rxd5 {[%emt 0:01:55]} 27. Qf2 {[%emt 0:13:21]} Rxb5 {[%emt 0:00:50]} 28. axb5 {[%emt 0:00:03]} a4+ {[%emt 0:00:59]} 29. Kc3 {[%emt 0:01:49]} Nf4 {[%emt 0:02:00]} 30. Bc5 {[%emt 0:02:15]} Nfd5+ {[%emt 0:02:50]} 31. cxd5 {[%emt 0:00:33]} Bxc5 {[%emt 0:00:38]} 32. Qxc5 {[%emt 0:01:19]} Qc2+ {[%emt 0:00:31]} 33. Kxb4 {[%emt 0:00:02]} Qxc5+ {[%emt 0:00:27]} 34. Kxa4 {[%emt 0:00:03]} Qc4+ {[%emt 0:00:12]} 35. Ka5 {[%emt 0:00:04]} b6+ {[%emt 0:00:18]} 36. Ka6 {[%emt 0:00:10]} Qc7 {[%emt 0:00:30]} 0-1

[Event "4th Memorial Warakomska-A 2020"]
[Site "Suwalki"]
[Date "2020.08.09"]
[Round "5.5"]
[White "Rasti, Arvin"]
[Black "Malaczek, Mateusz"]
[Result "1/2-1/2"]
[ECO "B06"]
[WhiteElo "2139"]
[BlackElo "2036"]
[Annotator "NA"]
[PlyCount "67"]
[EventDate "2020.08.06"]
[EventType "swiss"]
[EventCountry "POL"]
[SourceTitle "playchess.com"]
[Source "ChessBase"]
[SourceQuality "1"]
[TimeControl "40/5400+30:1800+30"]

1. d4 {[%emt 0:00:00]} g6 {[%emt 0:00:00]} 2. e4 {[%emt 0:00:33]} Bg7 {[%emt 0:00:00]} 3. Nc3 {[%emt 0:00:13]} d6 {[%emt 0:00:00]} 4. Be3 {[%emt 0:00:22]} a6 {[%emt 0:00:05]} 5. h4 {[%emt 0:00:29]} Nf6 {[%emt 0:00:24]} 6. f3 {[%emt 0:00:15]} b5 {[%emt 0:01:24] B07: Pirc Defence: Miscellaneous Systems.} 7. Qd2 {[%emt 0:00:33]} h6 {[%emt 0:02:31]} 8. Nh3 {[%emt 0:00:43]} Nbd7 {[%emt 0:00:32]} 9. O-O-O {[%emt 0:01:14]} Nb6 {[%emt 0:00:39]} 10. g4 {[%emt 0:02:28]} b4 {[%emt 0:00:36]} 11. Nb1 {[%emt 0:00:41]} a5 {[%emt 0:04:10] [#]} 12. g5 $146 {[%emt 0:09:04]} ({Predecessor:} 12. Nf4 Nfd7 13. Bb5 Bb7 14. d5 c5 15. dxc6 Bxc6 16. Qe2 Rc8 17. Bxc6 Rxc6 18. Nd5 {0-1 (34) Ioseliani,N (2520)-Svidler,P (2660) Luzern 1997}) 12... hxg5 {[%emt 0:10:07]} 13. hxg5 {[%emt 0:00:56]} Nfd7 {[%emt 0:01:10]} 14. Bb5 {[%emt 0:06:05]} Bb7 {[%emt 0:01:45]} (14... c6 $5 15. Bxc6 Nc4 $14) 15. Nf2 {[%emt 0:02:55]} Rg8 {[%emt 0:11:40]} 16. d5 {[%emt 0:04:57]} c5 {[%emt 0:01:56]} 17. Qe2 {[%emt 0:09:13]} Qc8 {[%emt 0:07:52]} 18. Ng4 {[%emt 0:06:51]} Ba6 {[%emt 0:07:37]} 19. Rh7 {[%emt 0:03:15]} Bxb5 {[%emt 0:06:25]} 20. Qxb5 {[%emt 0:00:04]} Qa6 {[%emt 0:00:11]} 21. Qxa6 {[%emt 0:00:58]} Rxa6 {[%emt 0:00:08]} 22. c3 {[%emt 0:08:21]} bxc3 {[%emt 0:17:47]} 23. Nxc3 {[%emt 0:00:14]} Nc4 {[%emt 0:00:32]} 24. Kc2 {[%emt 0:03:58]} Nde5 {[%emt 0:06:27]} 25. Bc1 {[%emt 0:00:41]} Nxg4 {[%emt 0:00:22]} 26. fxg4 {[%emt 0:00:01]} Ne5 {[%emt 0:01:17]} 27. Nb5 {[%emt 0:01:04]} Kf8 {[%emt 0:04:36]} 28. Rf1 {[%emt 0:01:48]} Rh8 {[%emt 0:01:14]} 29. Rxh8+ {[%emt 0:00:55]} Bxh8 {[%emt 0:00:04]} 30. Rg1 {[%emt 0:01:03]} Nf3 $11 {[%emt 0:02:48]} 31. Rh1 {[%emt 0:00:45]} Nd4+ {[%emt 0:00:31]} 32. Kd3 {[%emt 0:04:58]} Bg7 {[%emt 0:01:44]} 33. a4 {[%emt 0:04:46]} Nf3 {[%emt 0:05:08]} 34. Bf4 {[%emt 0:02:25]} 1/2-1/2

[Event "4th Memorial Warakomska-A 2020"]
[Site "Suwalki"]
[Date "2020.08.09"]
[Round "5.6"]
[White "Wolanski, Michal"]
[Black "Mulet, Piotr"]
[Result "0-1"]
[ECO "A20"]
[WhiteElo "2019"]
[BlackElo "2217"]
[Annotator "ChessBase"]
[PlyCount "68"]
[EventDate "2020.08.06"]
[EventType "swiss"]
[EventCountry "POL"]
[SourceTitle "playchess.com"]
[Source "ChessBase"]
[SourceQuality "1"]
[TimeControl "40/5400+30:1800+30"]

1. c4 {[%emt 0:00:00]} e5 {[%emt 0:00:00]} 2. g3 {[%emt 0:00:00]} Nf6 {[%emt 0:00:00]} 3. Bg2 {[%emt 0:00:00]} c6 {[%emt 0:00:08]} 4. Nf3 {[%emt 0:00:00]} e4 {[%emt 0:00:11]} 5. Nd4 {[%emt 0:00:00]} d5 {[%emt 0:00:20]} 6. cxd5 {[%emt 0:01:22]} Qxd5 {[%emt 0:01:04]} 7. Nb3 {[%emt 0:01:18]} Qh5 {[%emt 0:01:02]} 8. Nc3 {[%emt 0:02:53]} Bh3 {[%emt 0:02:04]} 9. O-O {[%emt 0:09:01]} Bd6 {[%emt 0:07:37]} 10. Re1 {[%emt 0:11:29]} Bxg2 {[%emt 0:04:23]} 11. Kxg2 {[%emt 0:00:03]} Ng4 {[%emt 0:05:44]} 12. h3 {[%emt 0:07:27]} Nxf2 {[%emt 0:00:12]} 13. Kxf2 {[%emt 0:00:22]} Qf5+ {[%emt 0:02:04]} 14. Kg2 {[%emt 0:01:30]} Qe5 {[%emt 0:00:11]} 15. Nxe4 {[%emt 0:00:48]} Qxe4+ {[%emt 0:00:06]} 16. Kh2 {[%emt 0:00:25]} Nd7 {[%emt 0:03:52]} 17. d3 {[%emt 0:02:20]} Qh4 {[%emt 0:11:32]} 18. Rg1 {[%emt 0:00:45]} O-O {[%emt 0:00:34]} 19. e4 {[%emt 0:11:28]} f5 {[%emt 0:01:33]} 20. Be3 {[%emt 0:02:59]} Rae8 {[%emt 0:02:23]} 21. Qd2 {[%emt 0:05:21]} Nf6 {[%emt 0:10:52]} 22. Qe1 {[%emt 0:08:56]} fxe4 {[%emt 0:07:04]} 23. Bc5 {[%emt 0:00:33]} Qh5 {[%emt 0:00:06]} 24. Bxd6 {[%emt 0:01:05]} Ng4+ {[%emt 0:00:06]} 25. Kg2 {[%emt 0:00:10]} Rf2+ {[%emt 0:00:07]} 26. Qxf2 {[%emt 0:00:22]} Nxf2 {[%emt 0:00:08]} 27. Kxf2 {[%emt 0:03:05]} Qf3+ {[%emt 0:00:56]} 28. Ke1 {[%emt 0:00:07]} exd3+ {[%emt 0:01:08]} 29. Kd2 {[%emt 0:00:06]} Re2+ {[%emt 0:08:03]} 30. Kc3 {[%emt 0:01:52]} d2+ {[%emt 0:00:06]} 31. Kb4 {[%emt 0:02:55]} Re4+ {[%emt 0:00:10]} 32. Ka3 {[%emt 0:00:21]} b5 {[%emt 0:00:08]} 33. Bb4 {[%emt 0:01:37]} a5 {[%emt 0:00:07]} 34. g4 {[%emt 0:00:21]} axb4# {[%emt 0:00:05]} 0-1